[Event "*** Titled Tuesday Blitz"]
[Site "Chess.com"]
[Date "2018.04.03"]
[Round "1"]
[White "DrZeiss"]
[Black "maciek_92"]
[Result "1/2-1/2"]
[WhiteElo "2216"]
[BlackElo "2539"]
[TimeControl "180+2"]
[EndTime "13:13:22 PDT"]
[Termination "Game drawn by repetition"]

1. e4 {[%clk 0:03:00.7]} 1... c5 {[%clk 0:03:01]} 2. Nf3 {[%clk 0:03:01]} 2...
Nc6 {[%clk 0:03:01.6]} 3. d4 {[%clk 0:03:01.9]} 3... cxd4 {[%clk 0:03:03.5]} 4.
Nxd4 {[%clk 0:03:03.1]} 4... e6 {[%clk 0:03:04.9]} 5. Nb5 {[%clk 0:03:03.1]}
5... d6 {[%clk 0:03:05]} 6. c4 {[%clk 0:03:04.2]} 6... a6 {[%clk 0:03:05.8]} 7.
N5a3 {[%clk 0:03:04.5]} 7... Nf6 {[%clk 0:03:07]} 8. Nc3 {[%clk 0:03:05.5]} 8...
b6 {[%clk 0:03:08.2]} 9. Be2 {[%clk 0:03:06.4]} 9... Bb7 {[%clk 0:03:09.3]} 10.
f4 {[%clk 0:03:07.3]} 10... Nd7 {[%clk 0:03:08.8]} 11. O-O {[%clk 0:03:06.7]}
11... Be7 {[%clk 0:03:10.2]} 12. Be3 {[%clk 0:03:07.6]} 12... O-O {[%clk
0:03:11.6]} 13. Rc1 {[%clk 0:03:07.9]} 13... Qb8 {[%clk 0:03:03.2]} 14. Bf3
{[%clk 0:03:06.8]} 14... Rd8 {[%clk 0:03:03.5]} 15. Qe2 {[%clk 0:03:06.3]} 15...
Nc5 {[%clk 0:02:56.6]} 16. Rfd1 {[%clk 0:03:05.4]} 16... Nb4 {[%clk 0:02:56.7]}
17. Nab1 {[%clk 0:02:57.3]} 17... Nc6 {[%clk 0:02:46.7]} 18. Qf2 {[%clk
0:02:43.3]} 18... Bf6 {[%clk 0:02:43.3]} 19. g4 {[%clk 0:02:37.2]} 19... g6
{[%clk 0:02:42.1]} 20. g5 {[%clk 0:02:35.5]} 20... Bg7 {[%clk 0:02:42.5]} 21. h4
{[%clk 0:02:34.4]} 21... b5 {[%clk 0:02:29.8]} 22. cxb5 {[%clk 0:02:21]} 22...
axb5 {[%clk 0:02:30.6]} 23. e5 {[%clk 0:02:06.9]} 23... Nb4 {[%clk 0:02:29.1]}
24. Bxc5 {[%clk 0:01:48.9]} 24... dxc5 {[%clk 0:02:26.2]} 25. Rxd8+ {[%clk
0:01:35.6]} 25... Qxd8 {[%clk 0:02:27.2]} 26. Bxb7 {[%clk 0:01:35.4]} 26... Rb8
{[%clk 0:02:25.1]} 27. Be4 {[%clk 0:01:34.7]} 27... Bf8 {[%clk 0:02:23.3]} 28.
Rd1 {[%clk 0:01:31.2]} 28... Qc7 {[%clk 0:02:23.9]} 29. a3 {[%clk 0:01:28.5]}
29... Na6 {[%clk 0:02:21.1]} 30. Qd2 {[%clk 0:01:26.7]} 30... c4 {[%clk
0:02:19.3]} 31. Kg2 {[%clk 0:01:17]} 31... Nc5 {[%clk 0:02:19.6]} 32. Bc2 {[%clk
0:01:14.1]} 32... Be7 {[%clk 0:02:18.3]} 33. Ne4 {[%clk 0:01:05.9]} 33... Rd8
{[%clk 0:02:17.3]} 34. Qe2 {[%clk 0:01:03.8]} 34... Rb8 {[%clk 0:02:07.9]} 35.
Nxc5 {[%clk 0:00:56]} 35... Qxc5 {[%clk 0:02:09.8]} 36. Nc3 {[%clk 0:00:56.9]}
36... b4 {[%clk 0:02:11.1]} 37. Ne4 {[%clk 0:00:55.1]} 37... Qc6 {[%clk
0:02:12.3]} 38. Qf3 {[%clk 0:00:51.1]} 38... Qb6 {[%clk 0:02:03.8]} 39. Rd7
{[%clk 0:00:46.3]} 39... bxa3 {[%clk 0:02:01]} 40. bxa3 {[%clk 0:00:46.5]} 40...
Qb2 {[%clk 0:01:54.4]} 41. Qe2 {[%clk 0:00:42]} 41... Qxa3 {[%clk 0:01:53.4]}
42. Nf6+ {[%clk 0:00:39.3]} 42... Kg7 {[%clk 0:01:45.5]} 43. Qxc4 {[%clk
0:00:34.1]} 43... Rb4 {[%clk 0:01:33.3]} 44. Qd3 {[%clk 0:00:24.5]} 44... Qa8+
{[%clk 0:01:27.9]} 45. Qf3 {[%clk 0:00:22.6]} 45... Qc8 {[%clk 0:01:24.2]} 46.
Be4 {[%clk 0:00:17.8]} 46... Rb2+ {[%clk 0:01:23.5]} 47. Kh3 {[%clk 0:00:18.9]}
47... Qc5 {[%clk 0:01:20.3]} 48. Rd1 {[%clk 0:00:15.6]} 48... Rf2 {[%clk
0:01:16.7]} 49. Qd3 {[%clk 0:00:13.2]} 49... Ra2 {[%clk 0:01:16.8]} 50. h5
{[%clk 0:00:13.4]} 50... Ra3 {[%clk 0:01:15.1]} 51. h6+ {[%clk 0:00:13.9]} 51...
Kh8 {[%clk 0:01:15.5]} 52. Qxa3 {[%clk 0:00:14]} 52... Qxa3+ {[%clk 0:01:15.8]}
53. Rd3 {[%clk 0:00:15.9]} 53... Qc1 {[%clk 0:01:11.9]} 54. Rd7 {[%clk
0:00:15.3]} 54... Qe3+ {[%clk 0:01:11.2]} 55. Kg4 {[%clk 0:00:14.6]} 55... Qg1+
{[%clk 0:01:07.7]} 56. Kf3 {[%clk 0:00:14.1]} 56... Qh1+ {[%clk 0:01:04.9]} 57.
Ke3 {[%clk 0:00:14.3]} 57... Bc5+ {[%clk 0:01:01.8]} 58. Kd3 {[%clk 0:00:13.4]}
58... Qf1+ {[%clk 0:00:59.6]} 59. Kc3 {[%clk 0:00:14]} 59... Qc1+ {[%clk
0:00:58.3]} 60. Kb3 {[%clk 0:00:13.9]} 60... Qa3+ {[%clk 0:00:56.8]} 61. Kc4
{[%clk 0:00:12.9]} 61... Qb4+ {[%clk 0:00:53.4]} 62. Kd3 {[%clk 0:00:13.7]}
62... Be7 {[%clk 0:00:54.8]} 63. Rb7 {[%clk 0:00:13.1]} 63... Qa3+ {[%clk
0:00:52.8]} 64. Ke2 {[%clk 0:00:12.3]} 64... Qa2+ {[%clk 0:00:40.9]} 65. Kf3
{[%clk 0:00:13.4]} 65... Qa3+ {[%clk 0:00:37.5]} 66. Kg4 {[%clk 0:00:14.5]}
66... Qc5 {[%clk 0:00:31.9]} 67. Rb8+ {[%clk 0:00:13.4]} 67... Bf8 {[%clk
0:00:32.5]} 68. Nd7 {[%clk 0:00:13.3]} 68... Qg1+ {[%clk 0:00:33.5]} 69. Kf3
{[%clk 0:00:14.3]} 69... Qh1+ {[%clk 0:00:31.7]} 70. Kg3 {[%clk 0:00:10.4]}
70... Qe1+ {[%clk 0:00:32]} 71. Kf3 {[%clk 0:00:08.7]} 71... Qd1+ {[%clk
0:00:32.6]} 72. Kf2 {[%clk 0:00:06.8]} 72... Qd2+ {[%clk 0:00:30.1]} 73. Kf3
{[%clk 0:00:07.6]} 73... Qd1+ {[%clk 0:00:27.6]} 74. Kg3 {[%clk 0:00:07.7]}
74... Qe1+ {[%clk 0:00:27.7]} 75. Kf3 {[%clk 0:00:06.9]} 75... Qf1+ {[%clk
0:00:28.2]} 76. Kg3 {[%clk 0:00:07.4]} 76... Qg1+ {[%clk 0:00:16.7]} 77. Kh3
{[%clk 0:00:06.8]} 77... Qe3+ {[%clk 0:00:16.5]} 78. Kg4 {[%clk 0:00:06.7]}
78... f5+ {[%clk 0:00:16.9]} 79. exf6 {[%clk 0:00:06.8]} 79... Qg1+ {[%clk
0:00:13.7]} 80. Kf3 {[%clk 0:00:08.1]} 80... Qh1+ {[%clk 0:00:14]} 81. Ke3
{[%clk 0:00:09.2]} 81... Qe1+ {[%clk 0:00:11.9]} 82. Kd3 {[%clk 0:00:09.3]}
82... Qd1+ {[%clk 0:00:12.5]} 83. Kc4 {[%clk 0:00:10.2]} 83... Qc1+ {[%clk
0:00:10.7]} 84. Kd4 {[%clk 0:00:10.6]} 84... Qd2+ {[%clk 0:00:10.6]} 85. Kc4
{[%clk 0:00:09.4]} 85... Qc1+ {[%clk 0:00:09]} 86. Kd3 {[%clk 0:00:07.9]} 86...
Qd1+ {[%clk 0:00:07.4]} 87. Ke3 {[%clk 0:00:08.8]} 87... Qe1+ {[%clk 0:00:08.5]}
88. Kf3 {[%clk 0:00:10]} 88... Qf1+ {[%clk 0:00:09.9]} 89. Kg3 {[%clk
0:00:10.5]} 89... Qe1+ {[%clk 0:00:09.7]} 90. Kh3 {[%clk 0:00:10.3]} 90... Qe3+
{[%clk 0:00:10.5]} 91. Kg4 {[%clk 0:00:09.8]} 91... Qg1+ {[%clk 0:00:10.7]} 92.
Kf3 {[%clk 0:00:09.8]} 92... Qf1+ {[%clk 0:00:10.8]} 93. Ke3 {[%clk 0:00:10.8]}
93... Qe1+ {[%clk 0:00:11.5]} 94. Kd3 {[%clk 0:00:11.6]} 94... Qd1+ {[%clk
0:00:12.4]} 95. Ke3 {[%clk 0:00:11.3]} 95... Qe1+ {[%clk 0:00:13.3]} 96. Kf3
{[%clk 0:00:12.1]} 96... Qf1+ {[%clk 0:00:13.2]} 1/2-1/2

[Event "*** Titled Tuesday Blitz"]
[Site "Chess.com"]
[Date "2018.04.03"]
[Round "1"]
[White "ST-Sandavagur"]
[Black "blitzcopter"]
[Result "0-1"]
[WhiteElo "2459"]
[BlackElo "2140"]
[TimeControl "180+2"]
[EndTime "13:14:13 PDT"]
[Termination "blitzcopter won by resignation"]

1. e4 {[%clk 0:03:01.9]} 1... c6 {[%clk 0:02:58.4]} 2. d4 {[%clk 0:03:02.3]}
2... d5 {[%clk 0:02:56.9]} 3. f3 {[%clk 0:03:03.7]} 3... dxe4 {[%clk 0:02:55.9]}
4. fxe4 {[%clk 0:03:05.6]} 4... e5 {[%clk 0:02:57.2]} 5. Nf3 {[%clk 0:03:06.7]}
5... Bg4 {[%clk 0:02:56.1]} 6. Bc4 {[%clk 0:03:07.1]} 6... Nd7 {[%clk
0:02:55.4]} 7. O-O {[%clk 0:03:08.1]} 7... Ngf6 {[%clk 0:02:53.4]} 8. c3 {[%clk
0:03:09.3]} 8... Bd6 {[%clk 0:02:52.4]} 9. Qb3 {[%clk 0:02:40.5]} 9... O-O
{[%clk 0:02:51]} 10. Qxb7 {[%clk 0:02:30.6]} 10... Nxe4 {[%clk 0:01:47.7]} 11.
Qxc6 {[%clk 0:02:28.1]} 11... Bxf3 {[%clk 0:01:16.7]} 12. Rxf3 {[%clk
0:02:04.7]} 12... Ndf6 {[%clk 0:01:03.3]} 13. Nd2 {[%clk 0:01:36.5]} 13... Rc8
{[%clk 0:01:01.6]} 14. Qa6 {[%clk 0:01:34.7]} 14... exd4 {[%clk 0:00:56.3]} 15.
Nxe4 {[%clk 0:01:19.1]} 15... Nxe4 {[%clk 0:00:53.7]} 16. Bf4 {[%clk 0:01:07]}
16... dxc3 {[%clk 0:00:22.9]} 17. bxc3 {[%clk 0:00:50.2]} 17... Bc5+ {[%clk
0:00:21.2]} 18. Kh1 {[%clk 0:00:51.7]} 18... Nf2+ {[%clk 0:00:21.6]} 19. Rxf2
{[%clk 0:00:53.3]} 19... Bxf2 {[%clk 0:00:23.4]} 20. Rf1 {[%clk 0:00:54.9]}
20... Bb6 {[%clk 0:00:13.1]} 21. Bb3 {[%clk 0:00:51.8]} 21... Qf6 {[%clk
0:00:12.4]} 22. Bg3 {[%clk 0:00:48.8]} 22... Qg6 {[%clk 0:00:10.1]} 23. Bxf7+
{[%clk 0:00:35.7]} 23... Qxf7 {[%clk 0:00:10.4]} 24. Rxf7 {[%clk 0:00:36.3]}
24... Kxf7 {[%clk 0:00:11.8]} 25. Be5 {[%clk 0:00:33.1]} 25... Rfe8 {[%clk
0:00:11.8]} 26. Qb7+ {[%clk 0:00:32.6]} 26... Bc7 {[%clk 0:00:09]} 27. Qd5+
{[%clk 0:00:31.5]} 27... Kf8 {[%clk 0:00:07.6]} 28. Bg3 {[%clk 0:00:18]} 28...
Bxg3 {[%clk 0:00:06.1]} 29. hxg3 {[%clk 0:00:19.9]} 29... Rcd8 {[%clk
0:00:05.9]} 30. Qc5+ {[%clk 0:00:20.7]} 30... Kg8 {[%clk 0:00:07]} 31. Qxa7
{[%clk 0:00:21.8]} 31... Re6 {[%clk 0:00:08]} 32. g4 {[%clk 0:00:17.9]} 32...
Red6 {[%clk 0:00:06.8]} 33. a4 {[%clk 0:00:15.9]} 33... R8d7 {[%clk 0:00:07.4]}
34. Qb8+ {[%clk 0:00:15.5]} 34... Kf7 {[%clk 0:00:09.3]} 35. Qb3+ {[%clk
0:00:16.8]} 35... Ke7 {[%clk 0:00:09.3]} 36. Qb4 {[%clk 0:00:15]} 36... Kd8
{[%clk 0:00:08.7]} 37. a5 {[%clk 0:00:13.4]} 37... Rh6+ {[%clk 0:00:09.5]} 38.
Kg1 {[%clk 0:00:14]} 38... Rd1+ {[%clk 0:00:10.9]} 39. Kf2 {[%clk 0:00:15.3]}
39... Rf6+ {[%clk 0:00:12.3]} 40. Ke2 {[%clk 0:00:16.7]} 40... Rdd6 {[%clk
0:00:13.6]} 41. Qb8+ {[%clk 0:00:16.3]} 41... Ke7 {[%clk 0:00:14.1]} 42. Qc7+
{[%clk 0:00:17.7]} 42... Kf8 {[%clk 0:00:15]} 43. c4 {[%clk 0:00:15.6]} 43...
Rc6 {[%clk 0:00:14.8]} 44. Qd8+ {[%clk 0:00:16.1]} 44... Kf7 {[%clk 0:00:16.1]}
45. Qd5+ {[%clk 0:00:16.8]} 45... Rfe6+ {[%clk 0:00:16.9]} 46. Kf3 {[%clk
0:00:18.3]} 46... Kf8 {[%clk 0:00:17.4]} 47. Kf4 {[%clk 0:00:16.1]} 47... Rf6+
{[%clk 0:00:17.5]} 48. Kg3 {[%clk 0:00:17.1]} 48... Rfd6 {[%clk 0:00:17.8]} 49.
Qb5 {[%clk 0:00:16.8]} 49... Kf7 {[%clk 0:00:17.9]} 50. g5 {[%clk 0:00:17.8]}
50... h6 {[%clk 0:00:18.1]} 51. Qf5+ {[%clk 0:00:17.3]} 51... Kg8 {[%clk
0:00:17.6]} 52. gxh6 {[%clk 0:00:18.4]} 52... Rxh6 {[%clk 0:00:18.5]} 53. Qd5+
{[%clk 0:00:14.4]} 53... Kh7 {[%clk 0:00:17.4]} 54. Kf4 {[%clk 0:00:14.4]} 54...
Rcf6+ {[%clk 0:00:17.4]} 55. Ke3 {[%clk 0:00:12.1]} 55... Re6+ {[%clk
0:00:17.1]} 56. Kf2 {[%clk 0:00:12.9]} 56... Rhf6+ {[%clk 0:00:17.8]} 57. Kg1
{[%clk 0:00:14.4]} 57... Re1+ {[%clk 0:00:14.5]} 58. Kh2 {[%clk 0:00:15]} 58...
Rh6+ {[%clk 0:00:15.6]} 59. Kg3 {[%clk 0:00:15.8]} 59... Ree6 {[%clk 0:00:16.3]}
60. Qd3+ {[%clk 0:00:14.3]} 60... Rhg6+ {[%clk 0:00:16.6]} 61. Kf4 {[%clk
0:00:15.7]} 61... Kg8 {[%clk 0:00:17.9]} 62. g4 {[%clk 0:00:16.6]} 62... Rgf6+
{[%clk 0:00:18.6]} 63. Kg3 {[%clk 0:00:16.5]} 63... Rd6 {[%clk 0:00:20]} 64. Qe4
{[%clk 0:00:15.2]} 64... g6 {[%clk 0:00:20]} 65. c5 {[%clk 0:00:15.8]} 65...
Rde6 {[%clk 0:00:19.9]} 66. Qd5 {[%clk 0:00:16.9]} 66... Kg7 {[%clk 0:00:20.5]}
67. g5 {[%clk 0:00:17.6]} 67... Re3+ {[%clk 0:00:20.6]} 68. Kg4 {[%clk
0:00:19.1]} 68... Rfe6 {[%clk 0:00:21.4]} 69. Kf4 {[%clk 0:00:15.7]} 69... Re1
{[%clk 0:00:20.8]} 70. c6 {[%clk 0:00:11]} 70... Rf1+ {[%clk 0:00:21.6]} 71. Kg3
{[%clk 0:00:12.5]} 71... Re7 {[%clk 0:00:17.5]} 72. Qd6 {[%clk 0:00:09.3]} 72...
Rff7 {[%clk 0:00:16.2]} 73. a6 {[%clk 0:00:09.5]} 73... Ra7 {[%clk 0:00:15.6]}
74. Qd4+ {[%clk 0:00:08.7]} 74... Kg8 {[%clk 0:00:15.4]} 75. Qc4 {[%clk
0:00:07.9]} 75... Kg7 {[%clk 0:00:15]} 76. Kg4 {[%clk 0:00:07.2]} 76... Rfc7
{[%clk 0:00:15.3]} 77. Qd4+ {[%clk 0:00:08.4]} 77... Kg8 {[%clk 0:00:15.7]} 78.
Qf6 {[%clk 0:00:09.9]} 78... Rg7 {[%clk 0:00:15.8]} 79. Qd8+ {[%clk 0:00:07.3]}
79... Kh7 {[%clk 0:00:15.9]} 80. Kf4 {[%clk 0:00:09.1]} 80... Rge7 {[%clk
0:00:14.7]} 81. Qd3 {[%clk 0:00:07.8]} 81... Rac7 {[%clk 0:00:13.6]} 82. Qb5
{[%clk 0:00:07.3]} 82... Kg7 {[%clk 0:00:13.1]} 83. Qb2+ {[%clk 0:00:06.1]}
83... Kg8 {[%clk 0:00:13.5]} 84. Qc3 {[%clk 0:00:06.8]} 84... Ra7 {[%clk
0:00:13.2]} 85. Qc5 {[%clk 0:00:07.1]} 85... Rf7+ {[%clk 0:00:14]} 86. Ke5
{[%clk 0:00:08.3]} 86... Rf5+ {[%clk 0:00:11.7]} 87. Kd6 {[%clk 0:00:09.6]}
87... Rxc5 {[%clk 0:00:12]} 88. Kxc5 {[%clk 0:00:11.5]} 88... Rxa6 {[%clk
0:00:13.1]} 89. c7 {[%clk 0:00:12.5]} 89... Ra1 {[%clk 0:00:13.5]} 90. Kd6
{[%clk 0:00:12.5]} 90... Rd1+ {[%clk 0:00:13.7]} 91. Ke7 {[%clk 0:00:13.1]}
91... Rc1 {[%clk 0:00:13.9]} 92. Kd7 {[%clk 0:00:14.5]} 92... Kf7 {[%clk
0:00:15.3]} 93. c8=Q {[%clk 0:00:15.7]} 93... Rxc8 {[%clk 0:00:16.4]} 94. Kxc8
{[%clk 0:00:17.6]} 94... Ke6 {[%clk 0:00:18.1]} 95. Kc7 {[%clk 0:00:19.2]} 95...
Kf5 {[%clk 0:00:20]} 96. Kd6 {[%clk 0:00:20.8]} 96... Kxg5 {[%clk 0:00:21.2]}
97. Ke5 {[%clk 0:00:22.4]} 97... Kh4 {[%clk 0:00:22.7]} 98. Kf4 {[%clk
0:00:23.8]} 98... g5+ {[%clk 0:00:24.1]} 99. Kf3 {[%clk 0:00:25.3]} 99... Kh3
{[%clk 0:00:25.6]} 100. Kf2 {[%clk 0:00:26.8]} 100... g4 {[%clk 0:00:25.5]} 101.
Kg1 {[%clk 0:00:28]} 101... Kg3 {[%clk 0:00:26.8]} 102. Kh1 {[%clk 0:00:27.5]}
102... Kf2 {[%clk 0:00:27.7]} 103. Kh2 {[%clk 0:00:29]} 103... g3+ {[%clk
0:00:29.2]} 104. Kh1 {[%clk 0:00:29.9]} 104... g2+ {[%clk 0:00:30.7]} 0-1

[Event "*** Titled Tuesday Blitz"]
[Site "Chess.com"]
[Date "2018.04.03"]
[Round "2"]
[White "FontVella8"]
[Black "thegreatauk"]
[Result "1-0"]
[WhiteElo "1845"]
[BlackElo "1913"]
[TimeControl "180+2"]
[EndTime "13:15:46 PDT"]
[Termination "FontVella8 won by checkmate"]

1. e4 {[%clk 0:03:01.9]} 1... c5 {[%clk 0:02:58.4]} 2. Nf3 {[%clk 0:03:02.9]}
2... d6 {[%clk 0:02:58.4]} 3. d4 {[%clk 0:03:03.7]} 3... cxd4 {[%clk 0:03:00.3]}
4. Nxd4 {[%clk 0:03:04.9]} 4... Nf6 {[%clk 0:03:01]} 5. f3 {[%clk 0:03:06.1]}
5... g6 {[%clk 0:02:58.7]} 6. c4 {[%clk 0:03:05.9]} 6... Bg7 {[%clk 0:02:59]} 7.
Nc3 {[%clk 0:03:06.6]} 7... Nc6 {[%clk 0:03:00]} 8. Be3 {[%clk 0:03:07.4]} 8...
Nd7 {[%clk 0:02:59.1]} 9. Qd2 {[%clk 0:03:05.5]} 9... a5 {[%clk 0:02:58.3]} 10.
Be2 {[%clk 0:03:01.6]} 10... Nc5 {[%clk 0:02:59.6]} 11. O-O {[%clk 0:03:00.6]}
11... O-O {[%clk 0:02:56.7]} 12. Rfd1 {[%clk 0:02:59.4]} 12... Nxd4 {[%clk
0:02:54]} 13. Bxd4 {[%clk 0:03:00.3]} 13... Bxd4+ {[%clk 0:02:55.9]} 14. Qxd4
{[%clk 0:03:01.4]} 14... Qb6 {[%clk 0:02:55.3]} 15. Nd5 {[%clk 0:03:00.5]} 15...
Qa7 {[%clk 0:02:54.5]} 16. Nxe7# {[%clk 0:02:59.9]} 1-0

[Event "*** Titled Tuesday Blitz"]
[Site "Chess.com"]
[Date "2018.04.03"]
[Round "2"]
[White "DiogenesSinopeus"]
[Black "Kislov_Oleg"]
[Result "1-0"]
[WhiteElo "2419"]
[BlackElo "2254"]
[TimeControl "180+2"]
[EndTime "13:17:07 PDT"]
[Termination "DiogenesSinopeus won by resignation"]

1. d4 {[%clk 0:03:01.6]} 1... d5 {[%clk 0:02:44]} 2. c4 {[%clk 0:03:02.7]} 2...
dxc4 {[%clk 0:02:44.2]} 3. e4 {[%clk 0:03:03.6]} 3... Nf6 {[%clk 0:02:44.8]} 4.
e5 {[%clk 0:03:04.6]} 4... Nd5 {[%clk 0:02:46.3]} 5. Bxc4 {[%clk 0:03:06]} 5...
Nb6 {[%clk 0:02:47.9]} 6. Bb3 {[%clk 0:03:07.5]} 6... Nc6 {[%clk 0:02:49.5]} 7.
Nf3 {[%clk 0:03:08.3]} 7... Bg4 {[%clk 0:02:46.9]} 8. Bxf7+ {[%clk 0:03:07.3]}
8... Kxf7 {[%clk 0:02:48]} 9. Ng5+ {[%clk 0:03:08.8]} 9... Ke8 {[%clk
0:02:49.2]} 10. Qxg4 {[%clk 0:03:10.7]} 10... Qxd4 {[%clk 0:02:49.7]} 11. Qe2
{[%clk 0:03:11]} 11... Qxe5 {[%clk 0:02:45.6]} 12. Be3 {[%clk 0:03:11.7]} 12...
Nd5 {[%clk 0:02:41.8]} 13. Nf3 {[%clk 0:03:07.8]} 13... Qe6 {[%clk 0:02:39]} 14.
O-O {[%clk 0:02:43.8]} 14... Rd8 {[%clk 0:02:32]} 15. Nc3 {[%clk 0:02:33.5]}
15... Nf4 {[%clk 0:02:12.7]} 16. Bxf4 {[%clk 0:02:27.9]} 1-0

[Event "*** Titled Tuesday Blitz"]
[Site "Chess.com"]
[Date "2018.04.03"]
[Round "2"]
[White "HaryKane"]
[Black "Rodalquilar"]
[Result "1-0"]
[WhiteElo "2443"]
[BlackElo "2453"]
[TimeControl "180+2"]
[EndTime "13:17:48 PDT"]
[Termination "HaryKane won by resignation"]

1. e4 {[%clk 0:03:01.9]} 1... c5 {[%clk 0:02:49.1]} 2. Nf3 {[%clk 0:03:02.7]}
2... Nc6 {[%clk 0:02:50.4]} 3. d4 {[%clk 0:03:04.2]} 3... cxd4 {[%clk
0:02:52.3]} 4. Nxd4 {[%clk 0:03:05.8]} 4... d6 {[%clk 0:02:53.8]} 5. Nc3 {[%clk
0:03:06.2]} 5... g6 {[%clk 0:02:55]} 6. Be3 {[%clk 0:03:05.6]} 6... Nf6 {[%clk
0:02:55.4]} 7. f3 {[%clk 0:03:06.2]} 7... Bg7 {[%clk 0:02:56.5]} 8. Qd2 {[%clk
0:03:07.4]} 8... O-O {[%clk 0:02:57.1]} 9. Bc4 {[%clk 0:03:08.6]} 9... Bd7
{[%clk 0:02:58]} 10. h4 {[%clk 0:03:08.8]} 10... h5 {[%clk 0:02:55.9]} 11. O-O-O
{[%clk 0:03:08.6]} 11... Rc8 {[%clk 0:02:54.4]} 12. Bb3 {[%clk 0:03:09.7]} 12...
Ne5 {[%clk 0:02:54.9]} 13. Rdg1 {[%clk 0:03:10.7]} 13... Nc4 {[%clk 0:02:50.2]}
14. Bxc4 {[%clk 0:03:11.2]} 14... Rxc4 {[%clk 0:02:52.1]} 15. g4 {[%clk
0:03:12.4]} 15... hxg4 {[%clk 0:02:53.3]} 16. h5 {[%clk 0:03:12.7]} 16... gxh5
{[%clk 0:02:52.9]} 17. fxg4 {[%clk 0:02:53.3]} 17... Bxg4 {[%clk 0:02:49]} 18.
Nf5 {[%clk 0:02:48.2]} 18... Nxe4 {[%clk 0:02:30]} 19. Rxg4 {[%clk 0:02:16.7]}
19... hxg4 {[%clk 0:02:16]} 20. Qh2 {[%clk 0:02:17.2]} 1-0

[Event "*** Titled Tuesday Blitz"]
[Site "Chess.com"]
[Date "2018.04.03"]
[Round "2"]
[White "Al_Shima"]
[Black "comedy_of_errors"]
[Result "0-1"]
[WhiteElo "2265"]
[BlackElo "2429"]
[TimeControl "180+2"]
[EndTime "13:18:31 PDT"]
[Termination "comedy_of_errors won by resignation"]

1. b3 {[%clk 0:03:01.9]} 1... d5 {[%clk 0:02:57.7]} 2. Bb2 {[%clk 0:03:02.8]}
2... c5 {[%clk 0:02:58.9]} 3. e3 {[%clk 0:03:03.7]} 3... a6 {[%clk 0:02:55.7]}
4. f4 {[%clk 0:03:04.3]} 4... Nc6 {[%clk 0:02:56.5]} 5. Nf3 {[%clk 0:03:05.7]}
5... Nf6 {[%clk 0:02:56.9]} 6. Bd3 {[%clk 0:03:06.4]} 6... g6 {[%clk 0:02:58]}
7. Ne5 {[%clk 0:03:05.1]} 7... Qc7 {[%clk 0:02:53.5]} 8. Nc3 {[%clk 0:02:52.7]}
8... Bg7 {[%clk 0:02:48.9]} 9. Nxc6 {[%clk 0:02:44.8]} 9... Qxc6 {[%clk
0:02:48.5]} 10. Qf3 {[%clk 0:02:42.6]} 10... O-O {[%clk 0:02:48.1]} 11. h3
{[%clk 0:02:43]} 11... b5 {[%clk 0:02:46.5]} 12. a4 {[%clk 0:02:43.1]} 12... b4
{[%clk 0:02:47]} 13. Na2 {[%clk 0:02:33.1]} 13... Bb7 {[%clk 0:02:46.8]} 14. O-O
{[%clk 0:02:29.4]} 14... Rad8 {[%clk 0:02:28.7]} 15. Be5 {[%clk 0:02:24.8]}
15... a5 {[%clk 0:02:26]} 16. Rf2 {[%clk 0:02:11.6]} 16... Qb6 {[%clk
0:02:19.3]} 17. Qe2 {[%clk 0:02:09.9]} 17... Rfe8 {[%clk 0:02:10.7]} 18. Bb5
{[%clk 0:02:09.5]} 18... Bc6 {[%clk 0:02:10.9]} 19. Bxc6 {[%clk 0:02:10]} 19...
Qxc6 {[%clk 0:02:12.8]} 20. c3 {[%clk 0:02:05.6]} 20... Ne4 {[%clk 0:02:11.5]}
21. Bxg7 {[%clk 0:02:05.3]} 21... Nxf2 {[%clk 0:02:06.8]} 22. cxb4 {[%clk
0:01:49]} 22... Kxg7 {[%clk 0:01:55.8]} 23. b5 {[%clk 0:01:49.1]} 23... Qf6
{[%clk 0:01:56.8]} 0-1

[Event "*** Titled Tuesday Blitz"]
[Site "Chess.com"]
[Date "2018.04.03"]
[Round "2"]
[White "mokerslag"]
[Black "ChessQueen"]
[Result "0-1"]
[WhiteElo "2415"]
[BlackElo "2652"]
[TimeControl "180+2"]
[EndTime "13:18:33 PDT"]
[Termination "ChessQueen won by resignation"]

1. e4 {[%clk 0:03:01.2]} 1... e5 {[%clk 0:02:59.8]} 2. Nf3 {[%clk 0:03:01.6]}
2... Nc6 {[%clk 0:03:00.9]} 3. Bc4 {[%clk 0:03:03.1]} 3... Bc5 {[%clk
0:03:01.4]} 4. O-O {[%clk 0:03:03.7]} 4... Nf6 {[%clk 0:03:01.5]} 5. d4 {[%clk
0:03:05.2]} 5... Bxd4 {[%clk 0:02:48.3]} 6. Nxd4 {[%clk 0:03:06]} 6... Nxd4
{[%clk 0:02:45.3]} 7. f4 {[%clk 0:03:06.9]} 7... d6 {[%clk 0:02:45.8]} 8. fxe5
{[%clk 0:03:08.2]} 8... dxe5 {[%clk 0:02:46.7]} 9. Bg5 {[%clk 0:03:10.1]} 9...
Be6 {[%clk 0:02:40]} 10. Na3 {[%clk 0:03:10.3]} 10... Rg8 {[%clk 0:02:30.4]} 11.
c3 {[%clk 0:03:04.3]} 11... Bxc4 {[%clk 0:02:27.6]} 12. Nxc4 {[%clk 0:02:56.8]}
12... Nc6 {[%clk 0:02:26.2]} 13. Qa4 {[%clk 0:02:19]} 13... Qe7 {[%clk
0:02:23.4]} 14. Ne3 {[%clk 0:02:15.5]} 14... O-O-O {[%clk 0:02:18.7]} 15. Bxf6
{[%clk 0:02:03.5]} 15... gxf6 {[%clk 0:02:18.6]} 16. Nd5 {[%clk 0:02:04.9]}
16... Qe6 {[%clk 0:02:06.7]} 17. Rxf6 {[%clk 0:01:55.6]} 17... Qg4 {[%clk
0:02:06.7]} 18. Rf2 {[%clk 0:01:57.1]} 18... Rxd5 {[%clk 0:02:05.5]} 19. h3
{[%clk 0:01:38.6]} 19... Qh4 {[%clk 0:02:05.9]} 20. Qb3 {[%clk 0:01:33.5]} 20...
Qxe4 {[%clk 0:02:04.4]} 21. Raf1 {[%clk 0:01:30.6]} 0-1

[Event "*** Titled Tuesday Blitz"]
[Site "Chess.com"]
[Date "2018.04.03"]
[Round "2"]
[White "Parhamov"]
[Black "Saitama_Hero"]
[Result "1-0"]
[WhiteElo "2814"]
[BlackElo "2137"]
[TimeControl "180+2"]
[EndTime "13:18:45 PDT"]
[Termination "Parhamov won by resignation"]

1. e4 {[%clk 0:03:01.9]} 1... d6 {[%clk 0:02:59.6]} 2. d4 {[%clk 0:02:56.1]}
2... g6 {[%clk 0:03:01.5]} 3. Nc3 {[%clk 0:02:56.7]} 3... Bg7 {[%clk 0:03:02.9]}
4. f4 {[%clk 0:02:58]} 4... Nf6 {[%clk 0:03:02.8]} 5. Nf3 {[%clk 0:02:56.1]}
5... O-O {[%clk 0:03:03.6]} 6. e5 {[%clk 0:02:53.6]} 6... Nfd7 {[%clk
0:02:54.1]} 7. h4 {[%clk 0:02:53.6]} 7... c5 {[%clk 0:02:49.9]} 8. h5 {[%clk
0:02:54.1]} 8... cxd4 {[%clk 0:02:49.7]} 9. Qxd4 {[%clk 0:02:54.2]} 9... Qb6
{[%clk 0:02:51.3]} 10. hxg6 {[%clk 0:02:48.2]} 10... hxg6 {[%clk 0:02:52.1]} 11.
Nd5 {[%clk 0:02:46.2]} 11... Qd8 {[%clk 0:02:39.5]} 12. f5 {[%clk 0:02:47.2]}
12... e6 {[%clk 0:01:46.3]} 13. f6 {[%clk 0:02:34.3]} 13... exd5 {[%clk
0:01:32.3]} 14. fxg7 {[%clk 0:02:25.6]} 14... Re8 {[%clk 0:01:32.3]} 15. Bg5
{[%clk 0:02:03.5]} 15... Nxe5 {[%clk 0:01:32.1]} 16. O-O-O {[%clk 0:02:03.8]}
16... f6 {[%clk 0:01:27.1]} 17. Qh4 {[%clk 0:02:02]} 17... fxg5 {[%clk
0:01:15.6]} 18. Qh7+ {[%clk 0:01:57.5]} 1-0